Cogmind - Beta 13 X1 @@@ ROGUE MODE // 2023.11.17 @ 18:21:13 Player: LU-1G1 Result: Destroyed by P-60 Hacker with Shock Rifle Performance ------------- Evolutions (4) 2000 Regions Visited (11) 2200 Robots Destroyed (188) 940 Value Destroyed (5873) 5873 Prototype IDs (19) 380 Alien Tech Used (0) 0 Bonus (24) 24 TOTAL SCORE: 11417 Bonus ------- High Alert Combat Kills 448 Follower Combat Kills 87 Met Data Miner 300 Friendly Fire -811 Cogmind --------- Core Integrity 0/850 Matter 54/300 Energy 99/100 System Corruption 21% Temperature Cool (0) Movement Core (50) Location -6/Factory Parts ------- > --- POWER (2) -------- (None) > --- PROPULSION (4) --- (None) > --- UTILITY (7) ------ Triangulator > --- WEAPON (2) ------- (None) > --- INVENTORY (5) ---- Advanced Terrain Scanner Component Analysis Suite Improved EM Pulse Cannon Antimatter Cannon Rocket Array Peak State ------------ > --- POWER ------------ Light Angular Momentum Engine Light Fission Core > --- PROPULSION ------- Armored Leg Armored Leg Enhanced Flexi-carbon Leg Enhanced Flexi-carbon Leg > --- UTILITY ---------- Improved Cooling System Huge Storage Unit Weapon Cycler Transmission Jammer Improved Light Armor Plating Force Field Hacking Suite > --- WEAPON ----------- Advanced Assault Cannon Advanced Assault Cannon > --- INVENTORY -------- Medium Treads Armored Leg Armored Leg Armored Leg Energy Well Advanced Energy Well High-capacity Matter Pod Improved Signal Interpreter Improved Light Armor Plating Improved Light Armor Plating Hardlight Generator Component Analysis Suite Long-range Tractor Beam Lightning Gun Force Rifle Force Rifle Force Rifle Improved EM Pulse Cannon Neutron Cannon Enhanced Autogun Heavy Rocket Launcher Rocket Array Datajack Heavy Mace [Rating: 76] Favorites ----------- Power Micro Nuclear Core Engine Light Ion Engine Power Core Micro Nuclear Core Propulsion Light Treads Treads Light Treads Leg Armored Leg Wheel Armored Huge Wheel Hover Unit Aerolev Unit Flight Unit Cooled VTOL Module Utility Huge Storage Unit Device Improved Shield Generator Storage Huge Storage Unit Processor Improved Targeting Computer Hackware Hacking Suite Protection Hardened Medium Armor Plating Weapon Assault Cannon Energy Gun Advanced Beam Rifle Energy Cannon Improved EM Pulse Cannon Ballistic Gun Assault Rifle Ballistic Cannon Assault Cannon Launcher Shock Bomb Launcher Special Weapon Mining Laser Impact Weapon Hammer Special Melee Weapon Datajack Build | -11 -10 -10 -10 -9 -8 -7 -7 -7 -7 -6 -6 ------- Run | Jun Mat Min Exi Min Mat Fac Low Low Dat Pro Fac Slots Evolved 8 | . . . . . 4 2 . . . . 2 Power 1 | . . . . . . 1 . . . . . Propulsion 2 | . . . . . 2 . . . . . . Utility 5 | . . . . . 2 1 . . . . 2 Weapon . | . . . . . . . . . . . . Parts Attached 234 | 8 7 3 . 7 39 41 5 8 2 15 99 Power 22 | 1 1 . . 1 3 4 . . . 1 11 Engine 15 | 1 1 . . 1 3 1 . . . 1 7 Core 7 | . . . . . . 3 . . . . 4 Reactor . | . . . . . . . . . . . . Propulsion 41 | 2 . . . 1 10 9 1 3 . 3 12 Treads 23 | 2 . . . . 8 8 1 3 . 1 . Leg 14 | . . . . . . . . . . 2 12 Wheel 1 | . . . . 1 . . . . . . . Hover 2 | . . . . . 2 . . . . . . Flight 1 | . . . . . . 1 . . . . . Utility 78 | 2 2 . . 1 14 14 1 1 . 5 38 Device 51 | 1 . . . 1 11 5 1 1 . 3 28 Storage 7 | 1 1 . . . 2 1 . . . 1 1 Processor 5 | . . . . . . 3 . . . . 2 Hackware 2 | . . . . . . . . . . . 2 Protection 13 | . 1 . . . 1 5 . . . 1 5 Artifact . | . . . . . . . . . . . . Weapon 93 | 3 4 3 . 4 12 14 3 4 2 6 38 Energy Gun 22 | 1 . 1 . . . 7 . . . 2 11 Energy Cannon 7 | . . . . . . . . . . 1 6 Ballistic Gun 17 | 2 3 2 . 2 1 1 1 2 1 1 1 Ballistic Cannon 27 | . . . . . 6 1 1 . 1 2 16 Launcher 9 | . . . . . 2 2 1 2 . . 2 Special Weapon 1 | . . . . 1 . . . . . . . Impact Weapon 8 | . 1 . . 1 3 3 . . . . . Slashing Weapon . | . . . . . . . . . . . . Piercing Weapon . | . . . . . . . . . . . . Special Melee Weapon 2 | . . . . . . . . . . . 2 Unidentified Prototypes 9 | . . . . . 1 4 . . . 3 1 Corrupted Parts 7 | . . . . . . . . . . 5 2 System Corruption 39 | . . . . . . . . . . 25 14 Parts Lost 49 | . 2 . . 1 6 4 . . . 1 35 Power 11 | . . . . . 1 . . . . . 10 Propulsion 8 | . . . . . 2 2 . . . 1 3 Utility 23 | . . . . 1 2 2 . . . . 18 Weapon 7 | . 2 . . . 1 . . . . . 4 Highest Loss Streak 9 | . 2 . . 1 4 1 . . . 1 9 To Critical Strikes . | . . . . . . . . . . . . Average Slot Usage (%) 96 | . 99 100 100 88 88 99 100 100 85 100 94 Engine 7 | . 14 14 14 14 8 4 . . . 2 6 Core 5 | . . . . . . 9 15 15 15 12 4 Treads 20 | . 28 28 28 5 19 29 30 30 30 29 1 Leg 5 | . . . . . . . . . . . 23 Wheel 1 | . . . . 11 7 . . . . . . Device 14 | . 8 . . 8 23 15 15 15 15 14 21 Storage 9 | . 14 14 14 14 9 7 7 7 7 7 8 Processor 3 | . . . . . . 5 7 7 7 7 4 Protection 6 | . 5 14 14 5 1 7 7 7 7 7 5 Energy Gun 2 | . . 3 . . . 10 . . . . 1 Ballistic Gun 9 | . 27 24 28 27 2 2 7 6 . 6 . Ballistic Cannon 5 | . . . . . 14 1 7 7 . 6 9 Naked Turns . | . . . . . . . . . . . . Heaviest Build 131 | 14 29 30 30 33 103 116 111 112 112 118 131 Greatest Support 94 | 40 40 40 40 40 80 83 86 89 89 94 92 Greatest Overweight (x) 3 | . . . . 1 3 1 1 1 1 2 2 Average Overweight (x) . | . . . . . 1 1 1 1 1 1 1 Largest Inventory Capacity 25 | 8 15 15 15 15 25 25 25 25 25 25 25 Average Capacity 21 | 7 11 15 15 15 21 25 25 25 25 25 24 Most Carried 25 | 1 13 14 15 15 24 25 25 25 25 25 25 Average Carried 19 | . 8 13 14 14 17 23 24 25 25 24 23 Final Capacity 25 | 8 15 15 15 15 25 25 25 25 25 25 5 Final Carried 25 | 1 13 14 15 15 23 25 25 25 25 25 5 Class Distribution -------------------- 51% | Scavenger-Mutant 43% | Mutant 4% | Infiltrator-Mutant Dominant Class ---------------- Mutant | -10/Materials Mutant | -10/Mines Mutant | -10/Exiles Mutant | -9/Mines Mutant | -8/Materials Scavenger-Mutant | -7/Factory Scavenger-Mutant | -7/Lower Caves Scavenger-Mutant | -7/Lower Caves Scavenger-Mutant | -7/Data Miner Scavenger-Mutant | -6/Proximity Caves Scavenger-Mutant | -6/Factory Resources | -11 -10 -10 -10 -9 -8 -7 -7 -7 -7 -6 -6 ----------- Run | Jun Mat Min Exi Min Mat Fac Low Low Dat Pro Fac Matter Collected 6777 | 356 391 63 . 227 1303 810 105 272 . 303 2947 Remotely 1383 | . . . . . 646 . . . . . 737 Salvage Created 7162 | 168 847 189 . 151 1616 1284 108 379 . 162 2258 Parts 313 | 8 56 8 . 11 75 27 4 20 . 11 93 Haulers Intercepted 9 | . 1 . . . 3 3 . . . . 2 Recyclers Shooed 6 | 1 1 . . . 1 1 . . . . 2 Parts Field Recycled . | . . . . . . . . . . . . Retrieved Matter . | . . . . . . . . . . . . Parts Self-Destructed 20 | . . . . . . . 1 9 . 10 . Prevented . | . . . . . . . . . . . . Kills | -11 -10 -10 -10 -9 -8 -7 -7 -7 -7 -6 -6 ------- Run | Jun Mat Min Exi Min Mat Fac Low Low Dat Pro Fac Combat Hostiles Destroyed 128 | . 19 4 . 8 26 21 3 9 . 2 36 Guns 55 | . 19 4 . 8 5 16 . . . 2 1 Cannons 40 | . . . . . 16 1 . 1 . . 22 AOE 26 | . . . . . 4 . 3 8 . . 11 Classes Destroyed 20 | 2 6 . . 2 2 2 1 . . 1 4 Worker 6 | . . . . 1 2 . . . . . 3 Builder 8 | . 1 . . . 3 . . . . . 4 Tunneler 6 | 3 . . . . 1 . . . . . 2 Hauler 9 | . 1 . . . 3 3 . . . . 2 Recycler 20 | 1 1 1 . . 7 2 . . . . 8 Mechanic 1 | . . . . . . . . . . . 1 Operator 3 | . 1 . . . . 1 . . . . 1 Drone 1 | . . . . . . . . . . 1 . Watcher 9 | . 1 . . . 3 . . . . . 5 Swarmer 35 | . 6 3 . 4 6 4 3 8 . . 1 Grunt 53 | . 13 1 . . 14 4 . . . 1 20 Brawler 2 | . . . . . . . . . . . 2 Duelist 1 | . . . . . . 1 . . . . . Protector 1 | . . . . . . . . . . . 1 Sentry 11 | . . . . . 5 4 . . . . 2 Hunter 7 | . . . . . 1 2 . . . . 4 Programmer 12 | . . . . . . 6 . 1 . . 5 Behemoth 1 | . . . . . . . . . . . 1 Enhanced Grunt 1 | . . . . . . . . . . 1 . Assembled 4 | . . . . 4 . . . . . . . Mutant 1 | . . . . . . . 1 . . . . Best Kill Streak 13 | 2 8 3 . 4 13 4 3 4 . 1 5 Combat Bots Only 7 | . 7 3 . 4 4 3 3 4 . 1 4 Max Kills in Single Turn 4 | 1 1 2 . 1 2 1 3 4 . 1 4 Gunslinging 1 | . . 1 . . . . . . . . . Exploded 4 | . . . . . 1 . 3 4 . . 3 Melee . | . . . . . . . . . . . . Uniques/NPCs Destroyed . | . . . . . . . . . . . . Combat | -11 -10 -10 -10 -9 -8 -7 -7 -7 -7 -6 -6 -------- Run | Jun Mat Min Exi Min Mat Fac Low Low Dat Pro Fac Damage Taken 9760 | . 695 118 . 155 1330 1458 9 183 . 371 5441 Core 1399 | . 142 21 . 5 179 86 . 33 . 76 857 Absorbed by Shields 2057 | . . . . 18 239 671 3 67 . 133 926 Regen/Repaired (Parts) 77 | . . . . . . 77 . . . . . Core Remaining (%) 67 | 100 . . . 32 67 . . . . 72 . Volleys Fired 563 | 19 61 7 . 32 114 96 11 13 . 24 186 Largest 2 | 2 2 2 . 2 2 2 2 2 . 2 2 Hottest 160 | 40 40 70 . 100 88 122 69 89 . 69 160 Shots Fired 1053 | 38 121 14 . 59 219 190 14 16 . 35 347 Gun 507 | 38 121 14 . 54 27 176 12 11 . 24 30 Cannon 525 | . . . . . 184 14 1 3 . 11 312 Launcher 16 | . . . . . 8 . 1 2 . . 5 Special 5 | . . . . 5 . . . . . . . Kinetic 811 | 38 121 11 . 54 211 33 13 14 . 22 294 Thermal 186 | . . 3 . 5 . 157 . . . . 21 Explosive 8 | . . . . . . . 1 2 . . 5 Electromagnetic 48 | . . . . . 8 . . . . 13 27 Robot Hit Streak 18 | 5 14 5 . 5 16 16 10 9 . 9 18 Robot Miss Streak 12 | 5 3 3 . 12 8 3 1 2 . 2 3 Penetration Max . | . . . . . . . . . . . . Secondary Targets 4 | . 2 1 . 1 . . . . . . . Max Gunslinging Chain 1 | . 1 1 . 1 . . . . . . . Shots Hit Robots 688 | 23 85 9 . 27 127 138 11 13 . 24 231 Core Hits 331 | 7 39 5 . 15 58 43 8 18 . 11 127 Critical Kills 5 | . 1 . . . 1 . . . . . 3 Critical Parts Destroyed 4 | 1 1 1 . . 1 . . . . . . Critical Strikes 54 | 1 2 1 . . 11 19 . . . . 20 Burn 19 | . . . . . . 19 . . . . . Destroy 8 | 1 1 1 . . 2 . . . . . 3 Blast 26 | . . . . . 9 . . . . . 17 Smash 1 | . 1 . . . . . . . . . . Melee Attacks 13 | . 3 . . 2 4 4 . . . . . Impact 13 | . 3 . . 2 4 4 . . . . . Slashing . | . . . . . . . . . . . . Piercing . | . . . . . . . . . . . . Sneak Attacks 4 | . 1 . . . 2 1 . . . . . Combat Hostiles . | . . . . . . . . . . . . Follow-up Attacks . | . . . . . . . . . . . . Damage Inflicted 19393 | 275 900 137 . 371 3519 3201 316 581 . 432 9661 Guns 5599 | 275 841 122 . 356 198 2758 151 186 . 273 439 Cannons 9726 | . . . . . 2526 241 23 30 . 115 6791 Explosions 3541 | . . . . . 627 . 142 365 . 44 2363 Melee 320 | . 54 . . . 167 99 . . . . . Ramming 207 | . 5 15 . 15 1 103 . . . . 68 Kinetic 11752 | 275 841 94 . 356 2724 473 174 216 . 279 6320 Thermal 3972 | . . 28 . . 171 2526 . . . 44 1203 Explosive 1987 | . . . . . . . 142 365 . . 1480 Electromagnetic 1155 | . . . . . 456 . . . . 109 590 Impact 320 | . 54 . . . 167 99 . . . . . Slashing . | . . . . . . . . . . . . Piercing . | . . . . . . . . . . . . Highest Corruption 30 | . . . . . . 5 5 5 5 30 21 Average Corruption 8 | . . . . . . 3 5 5 5 5 16 Corruption Purged . | . . . . . . . . . . . . Corruption Blocked . | . . . . . . . . . . . . Effects 234 | . . . . . . 37 19 23 6 25 124 Message Errors 45 | . . . . . . 8 6 8 1 5 17 Matter Fused 58 | . . . . . . 7 5 4 1 6 35 Heat Flow Errors 25 | . . . . . . 3 1 3 1 5 12 Energy Discharges 29 | . . . . . . 5 3 1 2 . 18 Parts Rejected 2 | . . . . . . . . . . . 2 Parts Fused 2 | . . . . . . . . . . 2 . Data Loss (minor) 27 | . . . . . . 3 2 1 1 4 16 Data Loss (major) 16 | . . . . . . 4 . 5 . 3 4 Misfires 7 | . . . . . . 2 2 . . . 3 Alerts 5 | . . . . . . 1 . 1 . . 3 Misdirections 4 | . . . . . . . . . . . 4 Weapon Failures 14 | . . . . . . 4 . . . . 10 Overload Shots . | . . . . . . . . . . . . Overflow Damage 642 | . 54 . . 8 56 43 20 . . 2 459 Projectiles 145 | . . . . . 26 . 13 . . . 106 Explosions 352 | . . . . . . . 7 . . 2 343 Melee 145 | . 54 . . 8 30 43 . . . . 10 Knockbacks 85 | . . . . 1 24 . . . . . 60 Impact 1 | . . . . 1 . . . . . . . Kinetic 78 | . . . . . 21 . . . . . 57 Secondary 6 | . . . . . 3 . . . . . 3 Self-Inflicted Damage 939 | . . . . 7 . . . 104 . 81 747 Shots 22 | . . . . . . . . 5 . 1 16 Rammed 19 | . 2 1 . 1 1 12 . . . . 2 Targets Rammed 25 | . 2 1 . 1 1 13 . . . . 7 Kicked 5 | . . . . . . . . . . . 5 Crushed 1 | . . . . . . 1 . . . . . Highest Temperature 455 | . 25 54 . 60 218 113 137 231 135 336 455 Average Temperature 66 | . 9 23 . 22 71 12 43 60 68 122 89 Received Heat Transfer 3067 | . 306 15 . 162 658 271 . . . 103 1552 Effects 3 | . . . . . . . . . . . 3 Damage (major) 3 | . . . . . . . . . . . 3 Siege Activations . | . . . . . . . . . . . . Robots Corrupted 6 | . . . . . 1 . . . . 1 4 Combat Hostiles 3 | . . . . . 1 . . . . . 2 Parts Fried 21 | . 4 . . . 4 1 . . . 2 10 Impact Corruptions 9 | . 2 . . 1 2 3 . . . . 1 Robots Melted 4 | . . . . . . 4 . . . . . Combat Hostiles 4 | . . . . . . 4 . . . . . Parts Melted 27 | . . 1 . . . 25 . . . . 1 Heat Transferred 7390 | . . 74 . . 300 5735 . . . 50 1231 Parts Sabotaged . | . . . . . . . . . . . . Parts Stolen . | . . . . . . . . . . . . Parts Stripped . | . . . . . . . . . . . . Power Chain Reactions 4 | . . . . . 2 . . . . 1 1 Missiles Intercepted . | . . . . . . . . . . . . Alert | -11 -10 -10 -10 -9 -8 -7 -7 -7 -7 -6 -6 ------- Run | Jun Mat Min Exi Min Mat Fac Low Low Dat Pro Fac Peak Influence 1059 | 20 379 192 . 92 553 324 . . . . 1059 Initial 300 | . 13 72 . . 7 161 . . . . 300 Average 283 | 9 195 160 . 36 244 186 . . . . 502 Maximum Alert Level 3 | . 1 . . . 2 1 . . . . 3 Low Security (%) 41 | 100 44 100 . 100 51 43 . . . . 9 Level 1 38 | . 55 . . . 21 56 . . . . 41 Level 2 13 | . . . . . 27 . . . . . 27 Level 3 6 | . . . . . . . . . . . 20 Level 4 . | . . . . . . . . . . . . Level 5 . | . . . . . . . . . . . . High Security . | . . . . . . . . . . . . Max Security . | . . . . . . . . . . . . Squads Dispatched 31 | . 3 . . 1 6 7 . . . . 14 Investigation 4 | . 2 . . 1 1 . . . . . . Extermination 11 | . . . . . . 6 . . . . 5 Reinforcement 10 | . 1 . . . 2 1 . . . . 6 Assault 2 | . . . . . . . . . . . 2 Garrison 4 | . . . . . 3 . . . . . 1 Intercept . | . . . . . . . . . . . . Searches Triggered . | . . . . . . . . . . . . Data Miner Redirects 1 | . . . . . . . . . . . 1 Construction Impeded 3 | . . . . . 2 . . . . . 1 Haulers Reinforced 2 | . . . . . . 1 . . . . 1 Active Scanning Responses . | . . . . . . . . . . . . Cargo Convoy Interrupts 1 | . . . . . . . . . . . 1 Stealth | -11 -10 -10 -10 -9 -8 -7 -7 -7 -7 -6 -6 --------- Run | Jun Mat Min Exi Min Mat Fac Low Low Dat Pro Fac Distress Signals 8 | . 1 . . . 3 1 . . . . 3 Communications Jammed 29 | . . . . . . . . . . . 29 Distress Signals 28 | . . . . . . . . . . . 28 Times Spotted 203 | . 34 5 . 13 41 33 2 9 . 5 61 Peak Tracking Total 8 | . 7 3 . 4 5 5 3 4 . 3 8 Tactical Retreats 15 | . 2 1 . 3 3 2 . . . . 4 Traps | -11 -10 -10 -10 -9 -8 -7 -7 -7 -7 -6 -6 ------- Run | Jun Mat Min Exi Min Mat Fac Low Low Dat Pro Fac Traps Triggered 7 | . 1 . . . 1 5 . . . . . Indirectly . | . . . . . . . . . . . . Trap Hack Attempts 29 | . . . . . . . . . . . 29 Triggered . | . . . . . . . . . . . . Disarmed . | . . . . . . . . . . . . Reprogrammed 2 | . . . . . . . . . . . 2 Reused . | . . . . . . . . . . . . Traps Extracted . | . . . . . . . . . . . . Installed . | . . . . . . . . . . . . Triggered 1 | . . . . . . . . . . . 1 Machines | -11 -10 -10 -10 -9 -8 -7 -7 -7 -7 -6 -6 ---------- Run | Jun Mat Min Exi Min Mat Fac Low Low Dat Pro Fac Machines Disabled 29 | . . . . . 1 2 . . . . 26 Max in Single Turn 7 | . . . . . 1 1 . . . . 7 Machines Repaired . | . . . . . . . . . . . . Machines Sabotaged . | . . . . . . . . . . . . Overloaded Fab Kills . | . . . . . . . . . . . . Hacking | -11 -10 -10 -10 -9 -8 -7 -7 -7 -7 -6 -6 --------- Run | Jun Mat Min Exi Min Mat Fac Low Low Dat Pro Fac Machines Accessed 39 | . 9 1 1 1 8 7 . . 3 . 9 Terminals 24 | . 7 1 . . 5 5 . . . . 6 Fabricators 3 | . . . . . . 1 . . . . 2 Repair Stations 2 | . . . . . 1 1 . . . . . Recycling Units 3 | . 2 . . . 1 . . . . . . Scanalyzers 1 | . . . . . 1 . . . . . . Garrison Access 1 | . . . . . . . . . . . 1 Total Hacks 112 | . 27 1 1 1 25 17 . . 24 . 16 Successful 65 | . 14 . 1 1 15 4 . . 24 . 6 Failed 46 | . 12 1 . . 10 13 . . . . 10 Catastrophic 10 | . 2 . . . 2 3 . . . . 3 Database Lockouts 1 | . 1 . . . . . . . . . . Manual 31 | . 14 1 . . 9 3 . . . . 4 Terminals 55 | . 23 1 . . 11 12 . . . . 8 Fabricators 8 | . . . . . . 2 . . . . 6 Repair Stations 6 | . . . . . 3 3 . . . . . Recycling Units 7 | . 4 . . . 3 . . . . . . Scanalyzers 8 | . . . . . 8 . . . . . . Garrison Access 2 | . . . . . . . . . . . 2 Terminal Hacks 46 | . 9 . 1 1 5 2 . . 24 . 4 Record 7 | . . . 1 . . . . . 6 . . Part Schematic 10 | . . . . . . . . . 10 . . Robot Schematic 5 | . . . . . . . . . 5 . . Robot Analysis 4 | . 4 . . . . . . . . . . Prototype ID Bank 3 | . . . . . . . . . 3 . . Open Door 1 | . . . . 1 . . . . . . . Open DSF 1 | . . . . . . . . . . . 1 Branch Access Points 3 | . . . . . 1 1 . . . . 1 Alert Level 2 | . 2 . . . . . . . . . . Unreport Threat 2 | . . . . . 1 1 . . . . . Locate Traps 2 | . 1 . . . 1 . . . . . . Hauler Manifests 2 | . 1 . . . 1 . . . . . . Zone Layout 4 | . 1 . . . 1 . . . . . 2 Fabricator Hacks 1 | . . . . . . . . . . . 1 Network Status 1 | . . . . . . . . . . . 1 Repair Station Hacks 3 | . . . . . 1 2 . . . . . Scan Component 2 | . . . . . 1 1 . . . . . Repair 1 | . . . . . . 1 . . . . . Recycling Unit Hacks 3 | . 2 . . . 1 . . . . . . Retrieve Components 3 | . 2 . . . 1 . . . . . . Scanalyzer 6 | . . . . . 6 . . . . . . Insert Component 3 | . . . . . 3 . . . . . . Analyze 3 | . . . . . 3 . . . . . . Garrison Access Hacks . | . . . . . . . . . . . . Unauthorized Hacks 6 | . 3 . . . 2 . . . . . 1 Terminals 2 | . 2 . . . . . . . . . . Assimilate 1 | . 1 . . . . . . . . . . Operators 1 | . 1 . . . . . . . . . . Fabricators 1 | . . . . . . . . . . . 1 Haulers 1 | . . . . . . . . . . . 1 Repair Stations . | . . . . . . . . . . . . Recycling Units 2 | . 1 . . . 1 . . . . . . Reject 1 | . 1 . . . . . . . . . . Tunnel 1 | . . . . . 1 . . . . . . Scanalyzers 1 | . . . . . 1 . . . . . . Researchers 1 | . . . . . 1 . . . . . . Garrison Access . | . . . . . . . . . . . . Data Cores Recovered 1 | . . . . . . 1 . . . . . Used . | . . . . . . . . . . . . Hacking Detections 30 | . 8 1 . . 7 7 . . . . 7 Full Trace Events 1 | . 1 . . . . . . . . . . Feedback Events . | . . . . . . . . . . . . Feedback Blocked . | . . . . . . . . . . . . Robot Schematics Acquired 5 | . . . . . . . . . 5 . . Robots Built . | . . . . . . . . . . . . Authchips . | . . . . . . . . . . . . Time . | . . . . . . . . . . . . Total Robot Build Rating . | . . . . . . . . . . . . Part Schematics Acquired 13 | . . . . . 3 . . . 10 . . Parts Built . | . . . . . . . . . . . . Authchips . | . . . . . . . . . . . . Time . | . . . . . . . . . . . . Total Part Build Rating . | . . . . . . . . . . . . Parts Repaired 1 | . . . . . . 1 . . . . . Time 26 | . . . . . . 26 . . . . . Parts Recycled . | . . . . . . . . . . . . Recycled Matter . | . . . . . . . . . . . . Retrieved Matter . | . . . . . . . . . . . . Retrieved Components 17 | . 7 . . . 10 . . . . . . Parts Scanalyzed 3 | . . . . . 3 . . . . . . Part Schematics Acquired 3 | . . . . . 3 . . . . . . Parts Damaged . | . . . . . . . . . . . . Bothacking | -11 -10 -10 -10 -9 -8 -7 -7 -7 -7 -6 -6 ------------ Run | Jun Mat Min Exi Min Mat Fac Low Low Dat Pro Fac Used RIF Installer . | . . . . . . . . . . . . Robots Hacked . | . . . . . . . . . . . . Non-combat . | . . . . . . . . . . . . Combat . | . . . . . . . . . . . . Robot Hacks Applied . | . . . . . . . . . . . . Relay Couplers Released 3 | . . . . . . 3 . . . . . Programmers 3 | . . . . . . 3 . . . . . Fabnet Peak Effective % . | . . . . . . . . . . . . Robots Rewired . | . . . . . . . . . . . . Allies Hacked . | . . . . . . . . . . . . Hacks Repelled . | . . . . . . . . . . . . Allies | -11 -10 -10 -10 -9 -8 -7 -7 -7 -7 -6 -6 -------- Run | Jun Mat Min Exi Min Mat Fac Low Low Dat Pro Fac Total Allies 2 | . 1 . . . . . . . . 1 . Largest Group 1 | . 1 . . . . . . . . 1 . Highest-Rated Group 96 | . 10 . . . . . . . . 96 . Highest-Rated Ally 96 | . 10 . . . . . . . . 96 . Total Orders . | . . . . . . . . . . . . Ally Attacks 16 | . . . . . . . . . . 16 . Total Damage 326 | . . . . . . . . . . 326 . Kills 3 | . . . . . . . . . . 3 . Allies Corrupted 1 | . . . . . . . . . . 1 . Allies Melted . | . . . . . . . . . . . . Intel | -11 -10 -10 -10 -9 -8 -7 -7 -7 -7 -6 -6 ------- Run | Jun Mat Min Exi Min Mat Fac Low Low Dat Pro Fac Robot Analysis Total 4 | . 4 . . . . . . . . . . Derelict Logs Recovered 6 | . . 1 . 3 . . . 1 . 1 . Drone Launches . | . . . . . . . . . . . . Drone Recoveries . | . . . . . . . . . . . . Exploration | -11 -10 -10 -10 -9 -8 -7 -7 -7 -7 -6 -6 ------------- Run | Jun Mat Min Exi Min Mat Fac Low Low Dat Pro Fac Turns Passed 13696 | 227 1428 223 1027 852 1486 2279 743 1019 235 981 3196 Spaces Moved 5928 | 102 739 117 641 583 612 744 298 411 97 375 1209 Core 143 | 1 . . . . . . . . . . 142 Treads 3859 | 101 739 117 641 98 162 744 298 411 97 375 76 Legs 991 | . . . . . . . . . . . 991 Wheels 935 | . . . . 485 450 . . . . . . Hover . | . . . . . . . . . . . . Flight . | . . . . . . . . . . . . Fastest Speed 50 | 50 160 160 160 115 115 240 240 240 240 240 50 Average Speed 187 | 158 160 160 160 122 159 240 240 240 240 240 186 Slowest Speed 320 | 160 160 160 160 160 240 240 240 242 240 320 320 Overloaded Moves . | . . . . . . . . . . . . Propulsion Burnouts . | . . . . . . . . . . . . Robots Hopped . | . . . . . . . . . . . . Cave-ins Triggered . | . . . . . . . . . . . . Exploration Rate (%) 54 | 7 97 21 71 92 49 23 51 70 69 55 43 Regions Visited 11 Branch Regions 7 Pre-discovered Areas 4 | . . . . 2 1 . . . 1 . . Known Exits Taken 2 | . . . . . . 1 . . . 1 . Unknown Exits Taken 9 | 1 1 1 1 1 1 . 1 1 1 . . Scrap Searched 10 | . . 2 . 3 . . 1 1 . 3 . Spaces Dug 19 | . 2 . . 5 2 2 . 1 . . 7 Terrain Destroyed 335 | . 2 . . 7 37 2 29 39 . 4 215 Melee 6 | . 2 . . 2 . 2 . . . . . Projectile 74 | . . . . 5 27 . . 1 . 2 39 AOE 255 | . . . . . 10 . 29 38 . 2 176 Terrain Rammed . | . . . . . . . . . . . . Walls Destroyed . | . . . . . . . . . . . . Machines Disabled . | . . . . . . . . . . . . Actions | -11 -10 -10 -10 -9 -8 -7 -7 -7 -7 -6 -6 --------- Run | Jun Mat Min Exi Min Mat Fac Low Low Dat Pro Fac Total 7447 | 129 874 137 643 651 891 1032 319 436 100 426 1809 Wait 429 | . 49 9 . 13 83 64 3 1 . 1 206 Move 5917 | 101 738 116 640 582 611 743 297 410 96 374 1209 Hop . | . . . . . . . . . . . . Pick Up 116 | . 12 1 2 6 24 31 1 . . 4 35 Fast Attach 52 | 8 1 . . 1 3 14 . 1 2 4 18 Attach 49 | . 2 . . 1 12 9 . . . 1 24 Detach 14 | 1 1 . . . 3 3 . . . 1 5 Swap 133 | . 4 3 . 5 24 18 5 7 . 10 57 Drop 103 | . 1 . 1 8 12 33 2 4 2 7 33 Fire 563 | 19 61 7 . 32 114 96 11 13 . 24 186 Melee 13 | . 3 . . 2 4 4 . . . . . Ram 3 | . . . . 1 . . . . . . 2 Kick 5 | . . . . . . . . . . . 5 Crush 17 | . 2 1 . . 1 13 . . . . . Escape Stasis 4 | . . . . . . 4 . . . . . Rewire . | . . . . . . . . . . . . Trap 29 | . . . . . . . . . . . 29 Miscellaneous . | . . . . . . . . . . . . Route ------- -11/Junkyard -10/Materials (discovered 5 exits: *Mat x3 / *Min / [*Sub]) -10/Mines (discovered 3 exits: *Mat x2 / *Exi) -10/Exiles -9/Mines -8/Materials (discovered 2 exits: *Fac x2) -7/Factory (discovered 2 exits: *Low x2) -7/Lower Caves -7/Lower Caves -7/Data Miner -6/Proximity Caves -6/Factory (discovered 4 exits: Low x2 / Ext x2) History --------- Turn | Location | Event 37 | -11/Junkyard | Discovered new exit (range 16) 228 | -11/Junkyard | Entered Materials 314 | -10/Materials | Build established: Mutant 481 | -10/Materials | Discovered new exit (range 12) 618 | -10/Materials | Destroyed 7 combat bots 690 | -10/Materials | Discovered new exit (range 15) 802 | -10/Materials | Discovered new exit (range 13) 968 | -10/Materials | Discovered new exit (range 16) 1143 | -10/Materials | Central database locked down 1274 | -10/Materials | Core integrity fell below 50% 1527 | -10/Materials | Discovered new exit (range 5) 1656 | -10/Materials | Entered Mines 1672 | -10/Mines | Met a Derelict bent on vengeance 1721 | -10/Mines | Discovered new exit (range 6) 1746 | -10/Mines | Identified exit to Materials 1873 | -10/Mines | Deemed a non-threat by the Exiles lab entrance 1873 | -10/Mines | Discovered new exit (range 5) 1879 | -10/Mines | Entered Exiles 1879 | -10/Exiles | Found Exiles lab abandoned 2564 | -10/Exiles | Discovered new exit (range 10) 2906 | -10/Exiles | Entered Mines 3066 | -9/Mines | Met a Derelict shopkeep closing up shop 3102 | -9/Mines | Learned location of Storage (-9) 3109 | -9/Mines | Assembled infested the area 3744 | -9/Mines | Discovered new exit (range 15) 3758 | -9/Mines | Entered Materials 3758 | -8/Materials | Evolved 4 slots: Propulsion x2, Utility x2 4560 | -8/Materials | Garrison activated, responded to threat 4812 | -8/Materials | Lost 4 parts (1n2u1w) 4878 | -8/Materials | Discovered new exit (range 5) 5159 | -8/Materials | Discovered new exit (range 10) 5244 | -8/Materials | Entered Factory 5244 | -7/Factory | Evolved 2 slots: Power x1, Utility x1 5246 | -7/Factory | Build established: Scavenger-Mutant 5322 | -7/Factory | Identified exit to Lower Caves 5852 | -7/Factory | Repaired Lgt. Treads? 6919 | -7/Factory | Found Prototype Launcher 6919 | -7/Factory | Identified Rocket Array 7523 | -7/Factory | Entered Lower Caves 7825 | -7/Lower Caves | Encountered a Warlord checkpoint 8038 | -7/Lower Caves | Discovered new exit (range 8) 8266 | -7/Lower Caves | Entered another Lower Caves area 8548 | -7/Lower Caves | Learned location of 1 exit from Proximity Caves 9244 | -7/Lower Caves | Discovered new exit (range 11) 9285 | -7/Lower Caves | Entered Data Miner 9286 | -7/Data Miner | Discovered new exit (range 6) 9332 | -7/Data Miner | Met Data Miner 9380 | -7/Data Miner | Learned location of Section 7 (-2) 9380 | -7/Data Miner | Acquired the access code to Warlord's prototype stash 9423 | -7/Data Miner | Received God Mode back door access code from Data Miner 9520 | -7/Data Miner | Entered Proximity Caves 9521 | -6/Proximity Caves | Identified exit to Factory 9523 | -6/Proximity Caves | Spotter reported a threat 9649 | -6/Proximity Caves | Escorted by Enhanced Grunt 9704 | -6/Proximity Caves | Spotter reported a threat 9778 | -6/Proximity Caves | Learned Factory stockpile data 10469 | -6/Proximity Caves | System corruption reached 10% 10499 | -6/Proximity Caves | System corruption reached 30% 10501 | -6/Proximity Caves | Entered Factory 10501 | -6/Factory | Evolved 2 slots: Utility x2 10710 | -6/Factory | Build established: Mutant 11065 | -6/Factory | Build established: Infiltrator-Mutant 11611 | -6/Factory | System corruption reached 10% 11618 | -6/Factory | Lost 4 parts (2p1u1w) 11889 | -6/Factory | Build established: Scavenger-Mutant 11962 | -6/Factory | Lost 3 parts (1p2u) 12430 | -6/Factory | Lost 3 parts (1p1u1w) 12465 | -6/Factory | Build established: Mutant 12509 | -6/Factory | Lost 3 parts (1p1u1w) 12815 | -6/Factory | Build established: Scavenger-Mutant 12951 | -6/Factory | First assault squad dispatched 13215 | -6/Factory | Spotted B-75 Beast 13231 | -6/Factory | Cargo convoy interrupted 13331 | -6/Factory | Destroyed B-75 Beast 13349 | -6/Factory | Lost 5 parts (2p2n1u) 13529 | -6/Factory | Garrison activated, responded to threat 13572 | -6/Factory | Core integrity fell below 50% 13622 | -6/Factory | Released all parts (6) 13630 | -6/Factory | Core integrity fell below 20% 13653 | -6/Factory | Lost 9 parts (1p7u1w) 13673 | -6/Factory | Incoming assault squad redirected 13679 | -6/Factory | Identified exit to Lower Caves 13679 | -6/Factory | Identified exit to Extension 13697 | -6/Factory | Destroyed by P-60 Hacker with Shock Rifle Last Messages --------------- 13666_ O-16 Technician: "IFF HANDSHAKE FAILED. SECURING TERMINAL." 13671_ System corrupted: Energy discharge (-24). 13673_ ALERT: Higher priority target reported, redirecting assault. 13673_ O-16 Technician uses terminal to summon reinforcements. 13673_ ALERT: Hostiles spotted, dispatching reinforcements to Terminal F009. 13673_ O-16 Technician locks terminal. 13679_ Connecting with Terminal... >>Access(Branch) Found 4 branch access points: (56,58) Lower Caves (72,142) Lower Caves (155,22) Extension (23,134) Extension Map updated. 13686_ System corrupted: Matter fused (-8). 13690_ Slammed into T-07 Excavator. 13690_ Triangulator broken. 13690_ Destabilizing: Short circuit. 13694_ K-01 Serf cleans the Pressure Siphon. 13697_ Chain reaction triggered in Lgt. Ion Engine. Map ----- +----------------------------------------------------+ | ????????????????? ????????????????????????????]??? | | ????????????????? ???????????????????????????????? | | ????????????????? ???????????????????????????????? | | ????????????????# #??????????????????????????????? | | ????????????????# #??????????????????????????????? | | ????????????????# #??????????????????????????????? | | ????????????????#A#??????????????????????????????? | | ????????????????# #??????????????????????????????? | | ????????????????# #??????????????????????????????? | | ????????????????# #??????????????????????????????? | | ????????????????# #??????????????????????????????? | | ????????????#####/########???????????????????????? | | ????????????# #???????????????????????? | | ????????????# """ """ #???????????????????????? | | ????????????# "T" """ #???????????????????????? | | ????????????# """ #???????????????????????? | | ????????????# #???????????????????????? | | ????????????# """ """ % #???????????????????????? | | ????????????# """ """ #???????????????????????? | | ????????????# """ """ #???????????????????????? | | ????????????# #???????????????????????? | | ????????????# #???????????????????????? | | ???? ??????# !#???????????????????????? | | ?????# ??# #???????????????????????? | | ?????# ###+##;##;;######+#####+###???????????? | | ?????# T p @ #?????????? | | ?????# k o #?????????? | | ?????+ """" +?????????? | | ?????# """" #?????????? | | ?????# """" k #?????????? | | ?????##### ###+#######+####### ??????????? | | ?????????# """" # ???????# ??????????? | | ?????????# """" + """ "??????????# #?????????? | | ?????????# """" # """ "??????????# #?????????? | | ?????????# #??""" "??????????# #?????????? | | ?????????# #???? ??????????# ##????????? | | ?????????# #?????? ?????????# ####?????? | | ????????#######+#######?????????????# ??????? | | ????????# ! #?????????????# #??????? | | ????????# #?????????????# #??????? | | ????????# #?????????????# #??????? | | ????????# """ """ ! #?????????????# ######## | | ????????# """ """ #?????????????# | | ????????# """ """ "" ############### ######## | | ????????# """ + #??????? | | ????????? """ """ S" #####################??????? | | ??????????""" """ """ #??????????????????????????? | | ???????????"" """ """ #??????????????????????????? | | ????????????? #??????????????????????????? | | ??????????????########???????????????????????????? | +----------------------------------------------------+ Best States ------------- Heat Dissipation 64 Energy Generation 31 Energy Capacity 840 Matter Stores 300 Matter Capacity 300 Sight Range 16 Robot Scan Range 15 Terrain Scan Density 10 Jamming Range 12 Armor Coverage 375 Weapon Cycling 15 Evasion (%) 50 Targeting Accuracy 8 Recoil Reduction 4 Offensive Hacking 10 Item Schematics ----------------- Huge Storage Unit | -8/Materials | Scanalyzed Melee Analysis Suite | -8/Materials | Scanalyzed Rnf. Deuterium Engine | -8/Materials | Scanalyzed Combat Drone Bay | -7/Data Miner | Free Lgt. Regenerative Plating | -7/Data Miner | Free Biomechanical Wings | -7/Data Miner | Free Gravity Neutralizer | -7/Data Miner | Free Ion Burst Cannon | -7/Data Miner | Free Arm. Medium Treads | -7/Data Miner | Free Adv. Field Recycling Unit | -7/Data Miner | Free Adv. Plasma Cannon | -7/Data Miner | Free Adv. Drone Bay | -7/Data Miner | Free Hardcell Cannon | -7/Data Miner | Free Robot Schematics ------------------ B-48 Gladiator | -7/Data Miner | Free R-10 Processor | -7/Data Miner | Free G-47 Trooper | -7/Data Miner | Free H-66 Slayer | -7/Data Miner | Free E-15 Imp | -7/Data Miner | Free Fabricated ------------ Nothing Alien Tech Used ----------------- None Achievements -------------- None Challenges ------------ None Game ------ Seed VisualSubatomicBattery Manual? 0 Play Time 02:27:14 Cumulative 654.6 hours Start 2023.11.05 @ 19:04:02 End 2023.11.17 @ 18:21:13 Sessions 5 Manual Loads 0 Difficulty Rogue Special Mode None Game No. 570 Rogue 355 Adventurer 112 Explorer 103 Win Type - Total 42 Types 26/0/8/3/0/0/4/1/0 Lore% 86 Gallery% 91 Achievement% 82 Wizard Run 0 Options --------- ASCII 0 Keyboard 1 Movement Vi Keybinds 1 Fullscreen 2 Font 32/Terminus Map View 78x55 Tactical HUD 1 Map Filters NONE Filters NONE Steam 1 RUN: b5076633-7f0a-4e24-bb2b-cdea40aaec34